[Event "December 19 Late 2023"]
[Site "https://www.chess.com"]
[Date "2023.12.19"]
[Round "1"]
[White "Rengifo Blancas, Renzo Jhonathan"]
[Black "Durarbayli, Vasif"]
[Result "0-1"]
[Board "46"]
[TimeControl "180+1"]
[WhiteFideId "3807185"]
[BlackFideId "13402935"]
[WhiteElo "2040"]
[BlackElo "2551"]
[WhiteTeam "PER"]
[BlackTeam "AZE"]
[WhiteClock "0:00:00"]
[BlackClock "0:00:07"]

1. e4 {[%clk 0:03:00]}  c5 {[%clk 0:02:57]} 2. c3 {[%clk 0:02:54]}  d5 {[%clk 0:02:54]} 3. exd5 {[%clk 0:02:52]}  Qxd5 {[%clk 0:02:55]} 4. d4 {[%clk 0:02:53]}  Nf6 {[%clk 0:02:55]} 5. Nf3 {[%clk 0:02:52]}  Bg4 {[%clk 0:02:46]} 6. Be2 {[%clk 0:02:49]}  Nc6 {[%clk 0:02:43]} 7. O-O {[%clk 0:02:47]}  e6 {[%clk 0:02:41]} 8. h3 {[%clk 0:02:47]}  Bh5 {[%clk 0:02:35]} 9. Be3 {[%clk 0:02:46]}  cxd4 {[%clk 0:02:33]} 10. cxd4 {[%clk 0:02:35]}  Be7 {[%clk 0:02:31]} 11. Nc3 {[%clk 0:02:33]}  Qd6 {[%clk 0:02:30]} 12. a3 {[%clk 0:02:33]}  O-O {[%clk 0:02:29]} 13. Qb3 {[%clk 0:02:28]}  a6 {[%clk 0:02:11]} 14. Rfd1 {[%clk 0:02:18]}  Rfd8 {[%clk 0:02:05]} 15. Rac1 {[%clk 0:02:17]}  b5 {[%clk 0:01:52]} 16. Qa2 {[%clk 0:01:53]}  Rab8 {[%clk 0:01:33]} 17. g4 {[%clk 0:01:27]}  Bg6 {[%clk 0:01:30]} 18. Bg5 {[%clk 0:01:25]}  b4 {[%clk 0:01:16]} 19. axb4 {[%clk 0:01:09]}  Nxb4 {[%clk 0:01:16]} 20. Qa3 {[%clk 0:01:02]}  Ne4 {[%clk 0:01:12]} 21. Bxe7 {[%clk 0:00:54]}  Qxe7 {[%clk 0:01:13]} 22. Ne5 {[%clk 0:00:49]}  Qh4 {[%clk 0:00:52]} 23. Nxe4 {[%clk 0:00:46]}  Bxe4 {[%clk 0:00:53]} 24. Bf3 {[%clk 0:00:41]}  Bc2 {[%clk 0:00:27]} 25. Rd2 {[%clk 0:00:35]}  Qxh3 {[%clk 0:00:27]} 26. Rcxc2 {[%clk 0:00:21]}  Nxc2 {[%clk 0:00:28]} 27. Rxc2 {[%clk 0:00:15]}  Rxd4 {[%clk 0:00:19]} 28. Qe7 {[%clk 0:00:10]}  Rf4 {[%clk 0:00:10]} 29. Qc7 {[%clk 0:00:04]}  Rf8 {[%clk 0:00:10]} 30. Bg2 {[%clk 0:00:02]}  Rxg4 {[%clk 0:00:06]} 31. Nxg4 {[%clk 0:00:02]}  Qxg4 {[%clk 0:00:07]} 32. Qg3 {[%clk 0:00:01]}  Qd1+ {[%clk 0:00:07]} 33. Kh2 {[%clk 0:00:02]}  Qxc2 {[%clk 0:00:08]} 34. Qc7 {[%clk 0:00:00]}  Qxc7+ {[%clk 0:00:07]} 0-1

[Event "December 19 Late 2023"]
[Site "https://www.chess.com"]
[Date "2023.12.19"]
[Round "1"]
[White "Melikhov, Evgeny V."]
[Black "Salinas Herrera, Pablo"]
[Result "0-1"]
[Board "48"]
[TimeControl "180+1"]
[WhiteFideId "4122046"]
[BlackFideId "3407128"]
[WhiteElo "2165"]
[BlackElo "2538"]
[WhiteTeam "GRE"]
[BlackTeam "CHI"]
[WhiteClock "0:00:00"]
[BlackClock "0:00:41"]

1. d4 {[%clk 0:03:00]}  d6 {[%clk 0:02:44]} 2. e4 {[%clk 0:03:00]}  g6 {[%clk 0:02:44]} 3. c4 {[%clk 0:02:58]}  Bg7 {[%clk 0:02:45]} 4. Nc3 {[%clk 0:02:58]}  Nd7 {[%clk 0:02:41]} 5. Be3 {[%clk 0:02:49]}  e5 {[%clk 0:02:40]} 6. d5 {[%clk 0:02:49]}  Ne7 {[%clk 0:02:39]} 7. Qd2 {[%clk 0:02:42]}  f5 {[%clk 0:02:39]} 8. f3 {[%clk 0:02:40]}  O-O {[%clk 0:02:36]} 9. O-O-O {[%clk 0:02:34]}  Nf6 {[%clk 0:02:30]} 10. Bd3 {[%clk 0:02:30]}  a6 {[%clk 0:02:27]} 11. Nge2 {[%clk 0:02:23]}  b5 {[%clk 0:02:27]} 12. c5 {[%clk 0:02:19]}  Kh8 {[%clk 0:02:22]} 13. c6 {[%clk 0:02:15]}  b4 {[%clk 0:02:13]} 14. Na4 {[%clk 0:02:05]}  a5 {[%clk 0:02:13]} 15. h3 {[%clk 0:01:58]}  fxe4 {[%clk 0:02:13]} 16. fxe4 {[%clk 0:01:58]}  Ba6 {[%clk 0:02:12]} 17. g4 {[%clk 0:01:26]}  Neg8 {[%clk 0:01:46]} 18. Ng3 {[%clk 0:01:19]}  Qb8 {[%clk 0:01:40]} 19. Bxa6 {[%clk 0:01:06]}  Rxa6 {[%clk 0:01:40]} 20. Qd3 {[%clk 0:01:02]}  Ra8 {[%clk 0:01:40]} 21. b3 {[%clk 0:00:59]}  Qc8 {[%clk 0:01:33]} 22. Kb1 {[%clk 0:00:52]}  Ne7 {[%clk 0:01:18]} 23. Qe2 {[%clk 0:00:46]}  Nfg8 {[%clk 0:01:15]} 24. Nb2 {[%clk 0:00:35]}  Rf4 {[%clk 0:01:15]} 25. Bxf4 {[%clk 0:00:18]}  exf4 {[%clk 0:01:15]} 26. Nf1 {[%clk 0:00:17]}  Qf8 {[%clk 0:01:08]} 27. Nd2 {[%clk 0:00:16]}  g5 {[%clk 0:01:01]} 28. Ndc4 {[%clk 0:00:16]}  Ng6 {[%clk 0:01:01]} 29. Nd3 {[%clk 0:00:11]}  Qf6 {[%clk 0:01:00]} 30. e5 {[%clk 0:00:11]}  dxe5 {[%clk 0:01:00]} 31. Qe4 {[%clk 0:00:09]}  a4 {[%clk 0:01:00]} 32. Rhf1 {[%clk 0:00:08]}  axb3 {[%clk 0:01:00]} 33. axb3 {[%clk 0:00:08]}  N8e7 {[%clk 0:00:59]} 34. Rf3 {[%clk 0:00:06]}  Nxd5 {[%clk 0:00:49]} 35. Qxd5 {[%clk 0:00:04]}  e4 {[%clk 0:00:49]} 36. Nde5 {[%clk 0:00:04]}  Nxe5 {[%clk 0:00:42]} 37. Nxe5 {[%clk 0:00:03]}  Qxe5 {[%clk 0:00:40]} 38. Qxe5 {[%clk 0:00:00]}  Bxe5 {[%clk 0:00:41]} 0-1

[Event "December 19 Late 2023"]
[Site "https://www.chess.com"]
[Date "2023.12.19"]
[Round "1"]
[White "Lopusiewicz, Piotr"]
[Black "Boruchovsky, Avital"]
[Result "0-1"]
[Board "52"]
[TimeControl "180+1"]
[WhiteFideId "1116029"]
[BlackFideId "2800055"]
[WhiteElo "2286"]
[BlackElo "2450"]
[WhiteTeam "POL"]
[BlackTeam "ISR"]
[WhiteClock "0:00:00"]
[BlackClock "0:00:03"]

1. d4 {[%clk 0:03:00]}  Nf6 {[%clk 0:02:59]} 2. c4 {[%clk 0:03:01]}  g6 {[%clk 0:02:58]} 3. Nc3 {[%clk 0:03:00]}  d5 {[%clk 0:02:59]} 4. Nf3 {[%clk 0:03:00]}  Bg7 {[%clk 0:02:58]} 5. h4 {[%clk 0:03:00]}  h6 {[%clk 0:02:52]} 6. Qb3 {[%clk 0:02:49]}  dxc4 {[%clk 0:02:46]} 7. Qxc4 {[%clk 0:02:49]}  O-O {[%clk 0:02:47]} 8. e4 {[%clk 0:02:49]}  a6 {[%clk 0:02:40]} 9. e5 {[%clk 0:02:47]}  b5 {[%clk 0:02:32]} 10. Qb3 {[%clk 0:02:47]}  Ne8 {[%clk 0:02:24]} 11. h5 {[%clk 0:02:39]}  g5 {[%clk 0:02:21]} 12. Nxg5 {[%clk 0:02:31]}  Nc6 {[%clk 0:01:57]} 13. Be3 {[%clk 0:01:55]}  Nxd4 {[%clk 0:01:51]} 14. Bxd4 {[%clk 0:01:52]}  Qxd4 {[%clk 0:01:52]} 15. Nf3 {[%clk 0:01:49]}  Qc5 {[%clk 0:01:30]} 16. Ne4 {[%clk 0:01:33]}  Qc6 {[%clk 0:01:30]} 17. Bd3 {[%clk 0:01:29]}  Be6 {[%clk 0:01:30]} 18. Nd4 {[%clk 0:01:23]}  Qb6 {[%clk 0:01:20]} 19. Nxe6 {[%clk 0:01:21]}  fxe6 {[%clk 0:01:19]} 20. O-O {[%clk 0:00:45]}  c5 {[%clk 0:01:18]} 21. Bc2 {[%clk 0:00:38]}  Bxe5 {[%clk 0:01:03]} 22. Qe3 {[%clk 0:00:36]}  Bf4 {[%clk 0:00:45]} 23. Qxc5 {[%clk 0:00:26]}  Qxc5 {[%clk 0:00:44]} 24. Nxc5 {[%clk 0:00:27]}  Ng7 {[%clk 0:00:25]} 25. Bb3 {[%clk 0:00:23]}  Kh8 {[%clk 0:00:19]} 26. Nxe6 {[%clk 0:00:19]}  Nxe6 {[%clk 0:00:19]} 27. Bxe6 {[%clk 0:00:19]}  Be5 {[%clk 0:00:19]} 28. Rad1 {[%clk 0:00:15]}  Bxb2 {[%clk 0:00:18]} 29. Rd7 {[%clk 0:00:15]}  Ba3 {[%clk 0:00:17]} 30. Rfd1 {[%clk 0:00:12]}  Bc5 {[%clk 0:00:15]} 31. R1d2 {[%clk 0:00:12]}  Bd6 {[%clk 0:00:11]} 32. g3 {[%clk 0:00:10]}  Rf6 {[%clk 0:00:11]} 33. Bb3 {[%clk 0:00:09]}  Rc8 {[%clk 0:00:07]} 34. Kg2 {[%clk 0:00:09]}  Kg7 {[%clk 0:00:06]} 35. f4 {[%clk 0:00:09]}  Rc5 {[%clk 0:00:06]} 36. Rd3 {[%clk 0:00:06]}  Rxh5 {[%clk 0:00:05]} 37. Kf3 {[%clk 0:00:05]}  Rc5 {[%clk 0:00:05]} 38. Ra7 {[%clk 0:00:05]}  Rc6 {[%clk 0:00:03]} 39. g4 {[%clk 0:00:00]}  Kf8 {[%clk 0:00:03]} 0-1

[Event "December 19 Late 2023"]
[Site "https://www.chess.com"]
[Date "2023.12.19"]
[Round "1"]
[White "FontVella8"]
[Black "Serra Canals, Oriol"]
[Result "1/2-1/2"]
[Board "53"]
[TimeControl "180+1"]
[BlackFideId "22276084"]
[WhiteElo "2833"]
[BlackElo "2108"]
[BlackTeam "ESP"]
[WhiteClock "0:00:06"]
[BlackClock "0:00:56"]

1. e4 {[%clk 0:03:00]}  e6 {[%clk 0:02:53]} 2. d4 {[%clk 0:02:59]}  d5 {[%clk 0:02:51]} 3. Bd3 {[%clk 0:02:56]}  dxe4 {[%clk 0:02:50]} 4. Bxe4 {[%clk 0:02:55]}  Nf6 {[%clk 0:02:51]} 5. Bf3 {[%clk 0:02:55]}  c5 {[%clk 0:02:52]} 6. Ne2 {[%clk 0:02:52]}  Nc6 {[%clk 0:02:50]} 7. Be3 {[%clk 0:02:50]}  cxd4 {[%clk 0:02:48]} 8. Nxd4 {[%clk 0:02:50]}  Bd7 {[%clk 0:02:48]} 9. O-O {[%clk 0:02:49]}  Be7 {[%clk 0:02:47]} 10. c4 {[%clk 0:02:43]}  a6 {[%clk 0:02:43]} 11. Nc3 {[%clk 0:02:43]}  Qc7 {[%clk 0:02:41]} 12. Rc1 {[%clk 0:02:40]}  Ne5 {[%clk 0:02:40]} 13. Be2 {[%clk 0:02:38]}  O-O {[%clk 0:02:37]} 14. h3 {[%clk 0:02:35]}  Rfd8 {[%clk 0:02:35]} 15. b3 {[%clk 0:02:31]}  Rac8 {[%clk 0:02:33]} 16. Qc2 {[%clk 0:02:27]}  Nc6 {[%clk 0:02:30]} 17. Nf3 {[%clk 0:02:21]}  h6 {[%clk 0:02:21]} 18. Rfd1 {[%clk 0:02:20]}  Be8 {[%clk 0:02:20]} 19. Rxd8 {[%clk 0:02:15]}  Rxd8 {[%clk 0:02:20]} 20. Rd1 {[%clk 0:02:10]}  Rxd1+ {[%clk 0:02:19]} 21. Qxd1 {[%clk 0:02:10]}  Ne5 {[%clk 0:02:14]} 22. Nxe5 {[%clk 0:02:04]}  Qxe5 {[%clk 0:02:15]} 23. Qd4 {[%clk 0:02:05]}  Qxd4 {[%clk 0:02:14]} 24. Bxd4 {[%clk 0:02:05]}  Bc6 {[%clk 0:02:14]} 25. Kf1 {[%clk 0:02:01]}  Nd7 {[%clk 0:02:09]} 26. Be3 {[%clk 0:01:53]}  Bf6 {[%clk 0:02:08]} 27. Bd2 {[%clk 0:01:51]}  Nc5 {[%clk 0:02:07]} 28. b4 {[%clk 0:01:49]}  Ne4 {[%clk 0:02:05]} 29. Nxe4 {[%clk 0:01:47]}  Bxe4 {[%clk 0:02:06]} 30. a4 {[%clk 0:01:41]}  Bd4 {[%clk 0:02:04]} 31. b5 {[%clk 0:01:33]}  axb5 {[%clk 0:02:04]} 32. axb5 {[%clk 0:01:33]}  Kf8 {[%clk 0:02:05]} 33. Bb4+ {[%clk 0:01:18]}  Ke8 {[%clk 0:02:04]} 34. f3 {[%clk 0:01:15]}  Bc2 {[%clk 0:02:01]} 35. Ke1 {[%clk 0:01:15]}  Kd7 {[%clk 0:01:58]} 36. Kd2 {[%clk 0:01:14]}  Bf5 {[%clk 0:01:55]} 37. Bd3 {[%clk 0:01:12]}  Bxd3 {[%clk 0:01:52]} 38. Kxd3 {[%clk 0:01:13]}  e5 {[%clk 0:01:52]} 39. c5 {[%clk 0:01:06]}  g6 {[%clk 0:01:50]} 40. Kc4 {[%clk 0:01:06]}  Ke6 {[%clk 0:01:45]} 41. b6 {[%clk 0:00:40]}  f5 {[%clk 0:01:30]} 42. f4 {[%clk 0:00:25]}  g5 {[%clk 0:01:18]} 43. fxe5 {[%clk 0:00:11]}  Bxe5 {[%clk 0:01:19]} 44. Bd2 {[%clk 0:00:11]}  Bb8 {[%clk 0:01:16]} 45. Bc1 {[%clk 0:00:10]}  Ke5 {[%clk 0:01:11]} 46. Bb2+ {[%clk 0:00:09]}  Ke6 {[%clk 0:01:11]} 47. Bg7 {[%clk 0:00:09]}  h5 {[%clk 0:01:11]} 48. Bh6 {[%clk 0:00:09]}  g4 {[%clk 0:01:11]} 49. Kd4 {[%clk 0:00:08]}  f4 {[%clk 0:01:07]} 50. hxg4 {[%clk 0:00:05]}  hxg4 {[%clk 0:01:08]} 51. Ke4 {[%clk 0:00:05]}  f3 {[%clk 0:01:07]} 52. gxf3 {[%clk 0:00:05]}  gxf3 {[%clk 0:01:08]} 53. Be3 {[%clk 0:00:04]}  Bh2 {[%clk 0:01:03]} 54. Kxf3 {[%clk 0:00:03]}  Kd5 {[%clk 0:01:03]} 55. Ke2 {[%clk 0:00:02]}  Kc6 {[%clk 0:00:55]} 56. Kd3 {[%clk 0:00:02]}  Bg3 {[%clk 0:00:55]} 57. Kd4 {[%clk 0:00:02]}  Bh2 {[%clk 0:00:55]} 58. Kc4 {[%clk 0:00:03]}  Bg3 {[%clk 0:00:55]} 59. Bd4 {[%clk 0:00:03]}  Bh2 {[%clk 0:00:55]} 60. Bf6 {[%clk 0:00:04]}  Bg3 {[%clk 0:00:55]} 61. Be7 {[%clk 0:00:04]}  Bf2 {[%clk 0:00:55]} 62. Bd6 {[%clk 0:00:03]}  Bg1 {[%clk 0:00:55]} 63. Kb4 {[%clk 0:00:03]}  Bf2 {[%clk 0:00:55]} 64. Kc4 {[%clk 0:00:04]}  Bg1 {[%clk 0:00:56]} 65. Bf8 {[%clk 0:00:04]}  Bf2 {[%clk 0:00:56]} 66. Be7 {[%clk 0:00:04]}  Bg1 {[%clk 0:00:56]} 67. Kb4 {[%clk 0:00:04]}  Bf2 {[%clk 0:00:56]} 68. Bd6 {[%clk 0:00:04]}  Bg1 {[%clk 0:00:57]} 69. Kc4 {[%clk 0:00:04]}  Bf2 {[%clk 0:00:57]} 70. Bf8 {[%clk 0:00:03]}  Bg1 {[%clk 0:00:57]} 71. Kb4 {[%clk 0:00:04]}  Bf2 {[%clk 0:00:57]} 72. Kc4 {[%clk 0:00:04]}  Bg1 {[%clk 0:00:57]} 73. Kb4 {[%clk 0:00:05]}  Bf2 {[%clk 0:00:56]} 74. Kc4 {[%clk 0:00:06]} 1/2-1/2

[Event "December 19 Late 2023"]
[Site "https://www.chess.com"]
[Date "2023.12.19"]
[Round "1"]
[White "Devagharan, Devina"]
[Black "Carlsson, Ludvig"]
[Result "1-0"]
[Board "54"]
[TimeControl "180+1"]
[WhiteFideId "2061600"]
[BlackFideId "1727010"]
[WhiteElo "2426"]
[BlackElo "2364"]
[WhiteTeam "USA"]
[BlackTeam "SWE"]
[WhiteClock "0:00:10"]
[BlackClock "0:00:33"]

1. d4 {[%clk 0:03:00]}  Nf6 {[%clk 0:02:59]} 2. c4 {[%clk 0:03:01]}  e6 {[%clk 0:02:59]} 3. Nc3 {[%clk 0:03:00]}  c5 {[%clk 0:02:59]} 4. d5 {[%clk 0:02:59]}  exd5 {[%clk 0:03:00]} 5. cxd5 {[%clk 0:02:59]}  d6 {[%clk 0:03:01]} 6. e4 {[%clk 0:02:59]}  g6 {[%clk 0:03:02]} 7. Bd3 {[%clk 0:02:59]}  Bg7 {[%clk 0:03:02]} 8. f4 {[%clk 0:02:58]}  O-O {[%clk 0:03:01]} 9. Nf3 {[%clk 0:02:59]}  b5 {[%clk 0:02:58]} 10. O-O {[%clk 0:02:52]}  c4 {[%clk 0:02:56]} 11. Bc2 {[%clk 0:02:50]}  b4 {[%clk 0:02:56]} 12. Ne2 {[%clk 0:02:29]}  Re8 {[%clk 0:02:54]} 13. Ng3 {[%clk 0:02:15]}  Bg4 {[%clk 0:02:49]} 14. h3 {[%clk 0:02:10]}  Bxf3 {[%clk 0:02:49]} 15. Qxf3 {[%clk 0:02:11]}  Nbd7 {[%clk 0:02:49]} 16. Be3 {[%clk 0:02:04]}  a5 {[%clk 0:02:47]} 17. Rad1 {[%clk 0:01:57]}  a4 {[%clk 0:02:46]} 18. Rfe1 {[%clk 0:01:50]}  b3 {[%clk 0:02:43]} 19. axb3 {[%clk 0:01:34]}  axb3 {[%clk 0:02:43]} 20. Bb1 {[%clk 0:01:35]}  Qc7 {[%clk 0:02:43]} 21. Bd4 {[%clk 0:01:32]}  Rac8 {[%clk 0:02:21]} 22. Kh2 {[%clk 0:01:23]}  Nb6 {[%clk 0:02:12]} 23. Bxb6 {[%clk 0:00:56]}  Qxb6 {[%clk 0:02:11]} 24. e5 {[%clk 0:00:57]}  Nd7 {[%clk 0:02:08]} 25. e6 {[%clk 0:00:53]}  Nf6 {[%clk 0:02:02]} 26. exf7+ {[%clk 0:00:44]}  Kxf7 {[%clk 0:02:03]} 27. f5 {[%clk 0:00:44]}  g5 {[%clk 0:01:22]} 28. Re6 {[%clk 0:00:43]}  h6 {[%clk 0:01:20]} 29. Nh5 {[%clk 0:00:39]}  Rg8 {[%clk 0:01:01]} 30. Rde1 {[%clk 0:00:34]}  Qd8 {[%clk 0:00:55]} 31. Nxf6 {[%clk 0:00:28]}  Bxf6 {[%clk 0:00:56]} 32. Qh5+ {[%clk 0:00:28]}  Kf8 {[%clk 0:00:56]} 33. Qxh6+ {[%clk 0:00:28]}  Bg7 {[%clk 0:00:56]} 34. Qh5 {[%clk 0:00:23]}  Bxb2 {[%clk 0:00:46]} 35. f6 {[%clk 0:00:16]}  Bxf6 {[%clk 0:00:40]} 36. Rf1 {[%clk 0:00:14]}  Rg7 {[%clk 0:00:34]} 37. Rfxf6+ {[%clk 0:00:12]}  Kg8 {[%clk 0:00:34]} 38. Rg6 {[%clk 0:00:10]}  Qd7 {[%clk 0:00:31]} 39. Rxg7+ {[%clk 0:00:10]}  Qxg7 {[%clk 0:00:32]} 40. Rg6 {[%clk 0:00:10]}  c3 {[%clk 0:00:30]} 41. Rxg7+ {[%clk 0:00:10]}  Kxg7 {[%clk 0:00:31]} 42. Qxg5+ {[%clk 0:00:10]}  Kf8 {[%clk 0:00:30]} 43. Qf5+ {[%clk 0:00:10]}  Ke7 {[%clk 0:00:30]} 44. Qxc8 {[%clk 0:00:11]}  c2 {[%clk 0:00:30]} 45. Bxc2 {[%clk 0:00:11]}  b2 {[%clk 0:00:31]} 46. Qb7+ {[%clk 0:00:11]}  Kf6 {[%clk 0:00:31]} 47. Qxb2+ {[%clk 0:00:12]}  Kg5 {[%clk 0:00:31]} 48. Qc1+ {[%clk 0:00:12]}  Kf6 {[%clk 0:00:31]} 49. Bb3 {[%clk 0:00:12]}  Ke5 {[%clk 0:00:32]} 50. Qe3+ {[%clk 0:00:12]}  Kf6 {[%clk 0:00:32]} 51. Qe6+ {[%clk 0:00:12]}  Kg5 {[%clk 0:00:32]} 52. Qxd6 {[%clk 0:00:12]}  Kh5 {[%clk 0:00:33]} 53. Qe5+ {[%clk 0:00:10]}  Kh6 {[%clk 0:00:32]} 54. Qg3 {[%clk 0:00:09]}  Kh7 {[%clk 0:00:31]} 55. d6 {[%clk 0:00:09]}  Kh6 {[%clk 0:00:31]} 56. d7 {[%clk 0:00:10]}  Kh5 {[%clk 0:00:32]} 57. d8=Q {[%clk 0:00:09]}  Kh6 {[%clk 0:00:33]} 58. Qdg5+ {[%clk 0:00:09]}  Kh7 {[%clk 0:00:33]} 59. Qg7# {[%clk 0:00:10]} 1-0

[Event "December 19 Late 2023"]
[Site "https://www.chess.com"]
[Date "2023.12.19"]
[Round "1"]
[White "Spichkin, Alexander"]
[Black "Khlebovich, Alexander"]
[Result "0-1"]
[Board "56"]
[TimeControl "180+1"]
[WhiteFideId "4144074"]
[BlackFideId "4169123"]
[WhiteElo "1955"]
[BlackElo "2334"]
[WhiteTeam "RUS"]
[BlackTeam "RUS"]
[WhiteClock "0:02:12"]
[BlackClock "0:01:20"]

1. f4 {[%clk 0:02:58]}  c5 {[%clk 0:02:59]} 2. Nf3 {[%clk 0:02:59]}  Nc6 {[%clk 0:02:59]} 3. d3 {[%clk 0:02:57]}  g6 {[%clk 0:02:58]} 4. e4 {[%clk 0:02:55]}  Bg7 {[%clk 0:02:58]} 5. Be2 {[%clk 0:02:56]}  d6 {[%clk 0:02:56]} 6. O-O {[%clk 0:02:56]}  Nf6 {[%clk 0:02:57]} 7. Nc3 {[%clk 0:02:57]}  O-O {[%clk 0:02:56]} 8. Qe1 {[%clk 0:02:57]}  Nd4 {[%clk 0:02:44]} 9. Bd1 {[%clk 0:02:57]}  e6 {[%clk 0:02:41]} 10. Qh4 {[%clk 0:02:57]}  Nd7 {[%clk 0:02:35]} 11. Qg3 {[%clk 0:02:57]}  f5 {[%clk 0:02:33]} 12. Ne2 {[%clk 0:02:52]}  Nxf3+ {[%clk 0:02:31]} 13. Qxf3 {[%clk 0:02:51]}  Nf6 {[%clk 0:02:30]} 14. c3 {[%clk 0:02:51]}  c4 {[%clk 0:02:25]} 15. exf5 {[%clk 0:02:44]}  cxd3 {[%clk 0:02:24]} 16. Qxd3 {[%clk 0:02:42]}  gxf5 {[%clk 0:02:24]} 17. Bb3 {[%clk 0:02:42]}  d5 {[%clk 0:02:23]} 18. Nd4 {[%clk 0:02:42]}  Ne4 {[%clk 0:02:21]} 19. Nf3 {[%clk 0:02:41]}  Bd7 {[%clk 0:02:17]} 20. Be3 {[%clk 0:02:41]}  Qc7 {[%clk 0:02:09]} 21. Ne5 {[%clk 0:02:38]}  a6 {[%clk 0:01:58]} 22. Bd4 {[%clk 0:02:37]}  Bb5 {[%clk 0:01:57]} 23. c4 {[%clk 0:02:31]}  dxc4 {[%clk 0:01:47]} 24. Bxc4 {[%clk 0:02:30]}  Bxe5 {[%clk 0:01:46]} 25. Bxb5 {[%clk 0:02:29]}  Bxd4+ {[%clk 0:01:45]} 26. Qxd4 {[%clk 0:02:29]}  axb5 {[%clk 0:01:46]} 27. Rac1 {[%clk 0:02:30]}  Qd6 {[%clk 0:01:45]} 28. Qe3 {[%clk 0:02:29]}  Rac8 {[%clk 0:01:43]} 29. Rcd1 {[%clk 0:02:29]}  Qc5 {[%clk 0:01:43]} 30. Rd4 {[%clk 0:02:30]}  Rcd8 {[%clk 0:01:41]} 31. Rfd1 {[%clk 0:02:29]}  Rxd4 {[%clk 0:01:41]} 32. Rxd4 {[%clk 0:02:30]}  Qc2 {[%clk 0:01:40]} 33. h3 {[%clk 0:02:27]}  Qxb2 {[%clk 0:01:38]} 34. Rd7 {[%clk 0:02:27]}  Qc3 {[%clk 0:01:34]} 35. Qe2 {[%clk 0:02:20]}  Qc1+ {[%clk 0:01:34]} 36. Kh2 {[%clk 0:02:18]}  Qxf4+ {[%clk 0:01:34]} 37. Kg1 {[%clk 0:02:18]}  Qc1+ {[%clk 0:01:33]} 38. Kh2 {[%clk 0:02:19]}  Qh1+ {[%clk 0:01:29]} 39. Kxh1 {[%clk 0:02:16]}  Ng3+ {[%clk 0:01:29]} 40. Kh2 {[%clk 0:02:16]}  Nxe2 {[%clk 0:01:30]} 41. Rxb7 {[%clk 0:02:17]}  Nc3 {[%clk 0:01:30]} 42. a3 {[%clk 0:02:14]}  Ra8 {[%clk 0:01:30]} 43. Rc7 {[%clk 0:02:15]}  Rxa3 {[%clk 0:01:29]} 44. Rc5 {[%clk 0:02:15]}  b4 {[%clk 0:01:28]} 45. Rc8+ {[%clk 0:02:13]}  Kg7 {[%clk 0:01:28]} 46. Kg3 {[%clk 0:02:14]}  Nd5+ {[%clk 0:01:27]} 47. Kh4 {[%clk 0:02:14]}  Rc3 {[%clk 0:01:23]} 48. Rb8 {[%clk 0:02:14]}  Rc4+ {[%clk 0:01:21]} 49. Kh5 {[%clk 0:02:13]}  Nf6+ {[%clk 0:01:20]} 50. Kg5 {[%clk 0:02:12]}  h6# {[%clk 0:01:20]} 0-1

[Event "December 19 Late 2023"]
[Site "https://www.chess.com"]
[Date "2023.12.19"]
[Round "1"]
[White "Troff, Kayden"]
[Black "Mizzi, Jack"]
[Result "1-0"]
[Board "59"]
[TimeControl "180+1"]
[WhiteFideId "2047896"]
[BlackFideId "5602521"]
[WhiteElo "2544"]
[BlackElo "2127"]
[WhiteTeam "USA"]
[BlackTeam "MLT"]
[WhiteClock "0:00:16"]
[BlackClock "0:00:01"]

1. d4 {[%clk 0:02:59]}  Nf6 {[%clk 0:02:56]} 2. Nf3 {[%clk 0:03:00]}  e6 {[%clk 0:02:55]} 3. Bf4 {[%clk 0:03:00]}  d5 {[%clk 0:02:53]} 4. e3 {[%clk 0:03:00]}  Bd6 {[%clk 0:02:51]} 5. Ne5 {[%clk 0:02:59]}  c5 {[%clk 0:02:49]} 6. Nc3 {[%clk 0:02:58]}  cxd4 {[%clk 0:02:44]} 7. Qxd4 {[%clk 0:02:55]}  Nc6 {[%clk 0:02:40]} 8. Nxc6 {[%clk 0:02:54]}  bxc6 {[%clk 0:02:41]} 9. Bg5 {[%clk 0:02:33]}  e5 {[%clk 0:02:30]} 10. Qh4 {[%clk 0:02:32]}  Be7 {[%clk 0:02:26]} 11. Bd3 {[%clk 0:02:20]}  e4 {[%clk 0:02:22]} 12. Be2 {[%clk 0:02:18]}  h6 {[%clk 0:02:21]} 13. O-O {[%clk 0:01:56]}  Be6 {[%clk 0:02:03]} 14. Rfd1 {[%clk 0:01:45]}  Qa5 {[%clk 0:01:57]} 15. Rab1 {[%clk 0:01:35]}  O-O {[%clk 0:01:28]} 16. Bf4 {[%clk 0:01:07]}  Rfe8 {[%clk 0:01:17]} 17. Qg3 {[%clk 0:00:54]}  Kh7 {[%clk 0:01:13]} 18. h3 {[%clk 0:00:47]}  Rac8 {[%clk 0:01:00]} 19. Bg4 {[%clk 0:00:46]}  Nxg4 {[%clk 0:00:56]} 20. hxg4 {[%clk 0:00:46]}  g5 {[%clk 0:00:53]} 21. Be5 {[%clk 0:00:40]}  f6 {[%clk 0:00:48]} 22. Bd6 {[%clk 0:00:38]}  Bxd6 {[%clk 0:00:47]} 23. Qxd6 {[%clk 0:00:39]}  Qc7 {[%clk 0:00:45]} 24. Qxc7+ {[%clk 0:00:33]}  Rxc7 {[%clk 0:00:46]} 25. f3 {[%clk 0:00:34]}  Bc8 {[%clk 0:00:38]} 26. Kf2 {[%clk 0:00:33]}  Rce7 {[%clk 0:00:35]} 27. fxe4 {[%clk 0:00:32]}  Bxg4 {[%clk 0:00:27]} 28. Rd4 {[%clk 0:00:32]}  dxe4 {[%clk 0:00:23]} 29. b4 {[%clk 0:00:31]}  f5 {[%clk 0:00:18]} 30. g3 {[%clk 0:00:29]}  Rf8 {[%clk 0:00:13]} 31. Rd6 {[%clk 0:00:26]}  f4 {[%clk 0:00:08]} 32. gxf4 {[%clk 0:00:26]}  gxf4 {[%clk 0:00:08]} 33. Rh1 {[%clk 0:00:27]}  h5 {[%clk 0:00:06]} 34. Rxc6 {[%clk 0:00:20]}  fxe3+ {[%clk 0:00:06]} 35. Kxe3 {[%clk 0:00:20]}  Rf3+ {[%clk 0:00:06]} 36. Kd4 {[%clk 0:00:21]}  Rd7+ {[%clk 0:00:06]} 37. Nd5 {[%clk 0:00:20]}  Rf2 {[%clk 0:00:04]} 38. c4 {[%clk 0:00:20]}  Rd8 {[%clk 0:00:03]} 39. Re1 {[%clk 0:00:18]}  Bf3 {[%clk 0:00:03]} 40. Ke3 {[%clk 0:00:17]}  Rg2 {[%clk 0:00:03]} 41. Nf4 {[%clk 0:00:16]}  Rg4 {[%clk 0:00:02]} 42. Nxh5 {[%clk 0:00:14]}  Rg5 {[%clk 0:00:03]} 43. Nf4 {[%clk 0:00:13]}  Rf5 {[%clk 0:00:01]} 44. Rc7+ {[%clk 0:00:14]}  Kg8 {[%clk 0:00:01]} 45. Rg1+ {[%clk 0:00:14]}  Kh8 {[%clk 0:00:01]} 46. Ng6+ {[%clk 0:00:14]}  Kg8 {[%clk 0:00:01]} 47. Ne7+ {[%clk 0:00:15]}  Kf8 {[%clk 0:00:02]} 48. Nxf5 {[%clk 0:00:16]}  Rd3+ {[%clk 0:00:02]} 49. Kf4 {[%clk 0:00:17]}  Rd2 {[%clk 0:00:02]} 50. Nh6 {[%clk 0:00:16]}  Ke8 {[%clk 0:00:01]} 51. Rg8# {[%clk 0:00:16]} 1-0